Cogmind - Beta 11.1 @@@ ROGUE MODE // 2022.06.11 @ 11:39:06 Player: ChromeKnight Result: Destroyed by Heavy Explosive Trap Performance ------------- Evolutions (1) 500 Regions Visited (4) 800 Robots Destroyed (74) 370 Value Destroyed (1360) 1360 Prototype IDs (1) 20 Alien Tech Used (0) 0 Bonus (0) 0 TOTAL SCORE: 3050 Bonus ------- None Cogmind --------- Core Integrity 0/400 Matter 294/300 Energy 261/265 System Corruption 0% Temperature Cool (2) Movement Treading (160) Location -9/Storage Parts ------- > --- POWER (1) -------- Improved Ion Engine > --- PROPULSION (2) --- Improved Treads Improved Treads > --- UTILITY (4) ------ Improved Heat Sink Large Storage Unit Improved Signal Interpreter Light Armor Plating > --- WEAPON (2) ------- Spread Laser Heavy Assault Rifle > --- INVENTORY (15) --- Improved Treads Improved Treads Improved Treads Cesium-ion Thruster Cesium-ion Thruster Cesium-ion Thruster Experimental Sensor Array Authchip [R/NC] Authchip [R/Combat] Authchip [R/Combat] Authchip [Propulsion] Heavy Assault Rifle Mini Grenade Launcher Datajack Plasma Flamer Peak State ------------ > --- POWER ------------ Improved Ion Engine > --- PROPULSION ------- Improved Treads Improved Treads > --- UTILITY ---------- Large Storage Unit Experimental Sensor Array Improved Signal Interpreter Light Armor Plating > --- WEAPON ----------- Spread Laser Heavy Assault Rifle > --- INVENTORY -------- Improved Treads Improved Treads Improved Treads Light Armor Plating Authchip [R/Combat] Authchip [R/Combat] Authchip [Propulsion] Authchip [Weapon] Heavy Assault Rifle Heavy Assault Rifle Mini Grenade Launcher Datajack Plasma Flamer [Rating: 27] Favorites ----------- Power Light Ion Engine Engine Light Ion Engine Power Core Light Nuclear Core Propulsion Light Treads Treads Light Treads Wheel Wheel Flight Unit Flight Unit Utility Large Storage Unit Device Improved Heat Sink Storage Large Storage Unit Processor Improved Signal Interpreter Protection Light Armor Plating Weapon Light Assault Rifle Energy Gun Spread Laser Energy Cannon Light EM Pulse Cannon Ballistic Gun Light Assault Rifle Build | -11 -10 -10 -9 -9 ------- Run | Scr Mat Min Mat Sto Slots Evolved 2 | . . . 2 . Power . | . . . . . Propulsion . | . . . . . Utility 2 | . . . 2 . Weapon . | . . . . . Parts Attached 53 | 6 6 11 27 3 Power 10 | 1 2 2 4 1 Engine 9 | 1 2 1 4 1 Core 1 | . . 1 . . Reactor . | . . . . . Propulsion 14 | 2 . 6 6 . Treads 9 | 2 . 1 6 . Leg . | . . . . . Wheel 2 | . . 2 . . Hover . | . . . . . Flight 3 | . . 3 . . Utility 15 | 1 2 . 10 2 Device 2 | . . . 1 1 Storage 4 | 1 2 . 1 . Processor 3 | . . . 3 . Hackware . | . . . . . Protection 6 | . . . 5 1 Artifact . | . . . . . Weapon 14 | 2 2 3 7 . Energy Gun 2 | . 1 . 1 . Energy Cannon 1 | . . . 1 . Ballistic Gun 11 | 2 1 3 5 . Ballistic Cannon . | . . . . . Launcher . | . . . . . Special Weapon . | . . . . . Impact Weapon . | . . . . . Slashing Weapon . | . . . . . Piercing Weapon . | . . . . . Special Melee Weapon . | . . . . . Unidentified Prototypes 1 | . . . 1 . Parts Lost 9 | . 1 3 4 1 Power 1 | . . 1 . . Propulsion 4 | . . 2 2 . Utility 3 | . . . 2 1 Weapon 1 | . 1 . . . Highest Loss Streak 2 | . 1 2 2 1 To Critical Strikes . | . . . . . Average Slot Usage (%) 87 | . 89 79 91 99 Engine 9 | . 14 5 11 11 Core 1 | . . 4 . . Treads 18 | . 28 10 20 22 Wheel 1 | . . 2 1 . Flight 1 | . . 4 . . Storage 16 | . 18 23 11 11 Processor 4 | . . . 9 11 Protection 7 | . . . 15 13 Energy Gun 5 | . 3 3 5 11 Energy Cannon 1 | . . . 3 . Ballistic Gun 18 | . 24 24 12 11 Naked Turns . | . . . . . Heaviest Build 39 | 12 38 37 39 39 Greatest Support 46 | 40 40 40 46 46 Greatest Overweight (x) 10 | . . 10 2 . Average Overweight (x) . | . . 1 . . Largest Inventory Capacity 15 | 8 15 15 15 15 Average Capacity 14 | 6 10 15 15 15 Most Carried 15 | 1 9 11 15 15 Average Carried 11 | . 5 9 14 15 Final Capacity 15 | 8 15 15 15 15 Final Carried 15 | 1 9 11 15 15 Class Distribution -------------------- 69% | Mutant 30% | Scavenger-Mutant Dominant Class ---------------- Mutant | -10/Materials Mutant | -10/Mines Mutant | -9/Materials Mutant | -9/Storage Resources | -11 -10 -10 -9 -9 ----------- Run | Scr Mat Min Mat Sto Matter Collected 1538 | 217 379 236 636 70 Remotely . | . . . . . Salvage Created 2335 | . 749 270 1192 124 Parts 165 | . 50 30 78 7 Haulers Intercepted 5 | . 1 . 4 . Recyclers Shooed 8 | . 3 1 4 . Parts Field Recycled . | . . . . . Retrieved Matter . | . . . . . Parts Self-Destructed . | . . . . . Prevented . | . . . . . Kills | -11 -10 -10 -9 -9 ------- Run | Scr Mat Min Mat Sto Combat Hostiles Destroyed 46 | . 11 11 20 4 Guns 40 | . 11 11 14 4 Cannons 5 | . . . 5 . AOE 1 | . . . 1 . Classes Destroyed 11 | . 6 1 4 . Worker 5 | . 2 1 2 . Builder 3 | . . . 3 . Tunneler 1 | . . 1 . . Hauler 5 | . 1 . 4 . Recycler 8 | . 5 . 3 . Operator 1 | . . . 1 . Watcher 5 | . 2 . 3 . Swarmer 22 | . 6 9 7 . Grunt 18 | . 5 2 9 2 Duelist 1 | . . . 1 . Sentry 5 | . . . 3 2 Best Kill Streak 16 | . 6 3 16 2 Combat Bots Only 9 | . 3 3 9 2 Max Kills in Single Turn 3 | . 1 1 3 1 Gunslinging . | . . . . . Exploded 1 | . . . 1 . Melee . | . . . . . Uniques/NPCs Destroyed . | . . . . . Combat | -11 -10 -10 -9 -9 -------- Run | Scr Mat Min Mat Sto Damage Taken 2685 | . 463 580 1328 314 Core 596 | . 45 148 304 99 Absorbed by Shields . | . . . . . Core Remaining (%) 61 | 100 . 22 . . Volleys Fired 249 | . 62 54 116 17 Largest 2 | . 2 2 2 2 Hottest 88 | . 60 60 88 88 Shots Fired 479 | . 120 108 217 34 Gun 439 | . 120 108 177 34 Cannon 40 | . . . 40 . Launcher . | . . . . . Special . | . . . . . Kinetic 355 | . 118 84 136 17 Thermal 84 | . 2 24 41 17 Explosive . | . . . . . Electromagnetic 40 | . . . 40 . Robot Hit Streak 14 | . 12 9 8 14 Robot Miss Streak 8 | . 4 7 8 3 Penetration Max . | . . . . . Secondary Targets 3 | . 3 . . . Max Gunslinging Chain 1 | . 1 . . . Shots Hit Robots 297 | . 71 61 138 27 Core Hits 151 | . 31 25 78 17 Critical Kills 1 | . . . . 1 Critical Parts Destroyed . | . . . . . Critical Strikes 1 | . . . . 1 Destroy 1 | . . . . 1 Melee Attacks . | . . . . . Impact . | . . . . . Slashing . | . . . . . Piercing . | . . . . . Sneak Attacks . | . . . . . Combat Hostiles . | . . . . . Follow-up Attacks . | . . . . . Damage Inflicted 4088 | . 928 513 2205 442 Guns 3416 | . 926 513 1535 442 Cannons 537 | . . . 537 . Explosions 133 | . . . 133 . Melee . | . . . . . Ramming 2 | . 2 . . . Kinetic 2492 | . 916 360 1045 171 Thermal 1057 | . 10 153 623 271 Explosive . | . . . . . Electromagnetic 537 | . . . 537 . Impact . | . . . . . Slashing . | . . . . . Piercing . | . . . . . Highest Corruption . | . . . . . Average Corruption . | . . . . . Corruption Purged . | . . . . . Corruption Blocked . | . . . . . Overload Shots . | . . . . . Overflow Damage 11 | . . . 11 . Projectiles 10 | . . . 10 . Explosions 1 | . . . 1 . Melee . | . . . . . Knockbacks . | . . . . . Impact . | . . . . . Kinetic . | . . . . . Secondary . | . . . . . Self-Inflicted Damage 98 | . . . 98 . Shots 2 | . . . 2 . Rammed 1 | . 1 . . . Targets Rammed 1 | . 1 . . . Kicked . | . . . . . Crushed . | . . . . . Highest Temperature 392 | . 40 123 392 175 Average Temperature 78 | . 8 54 88 64 Received Heat Transfer 825 | . 204 69 477 75 Effects 3 | . . . 3 . Interference 3 | . . . 3 . Siege Activations . | . . . . . Robots Corrupted 1 | . . . 1 . Combat Hostiles . | . . . . . Parts Fried 1 | . . . 1 . Impact Corruptions . | . . . . . Robots Melted . | . . . . . Combat Hostiles . | . . . . . Parts Melted 3 | . . . 3 . Heat Transferred 1630 | . 25 350 915 340 Parts Sabotaged . | . . . . . Parts Stolen . | . . . . . Parts Stripped . | . . . . . Power Chain Reactions 1 | . . . 1 . Missiles Intercepted . | . . . . . Alert | -11 -10 -10 -9 -9 ------- Run | Scr Mat Min Mat Sto Peak Influence 329 | . 312 155 329 200 Initial 75 | . . 75 . 67 Average 115 | . 174 61 138 145 Maximum Alert Level 1 | . 1 . 1 1 Low Security (%) 83 | 100 62 100 79 65 Level 1 16 | . 37 . 20 34 Level 2 . | . . . . . Level 3 . | . . . . . Level 4 . | . . . . . Level 5 . | . . . . . High Security . | . . . . . Max Security . | . . . . . Squads Dispatched 3 | . 1 . 2 . Investigation 3 | . 1 . 2 . Extermination . | . . . . . Reinforcement . | . . . . . Assault . | . . . . . Garrison . | . . . . . Intercept . | . . . . . Searches Triggered . | . . . . . Construction Impeded . | . . . . . Haulers Reinforced . | . . . . . Active Scanning Responses . | . . . . . Cargo Convoy Interrupts . | . . . . . Stealth | -11 -10 -10 -9 -9 --------- Run | Scr Mat Min Mat Sto Distress Signals 2 | . 2 . . . Communications Jammed . | . . . . . Distress Signals . | . . . . . Times Spotted 64 | . 17 11 32 4 Peak Tracking Total 5 | . 4 3 5 2 Tactical Retreats 5 | . 1 . 3 1 Traps | -11 -10 -10 -9 -9 ------- Run | Scr Mat Min Mat Sto Traps Triggered 3 | . 1 . 1 1 Indirectly . | . . . . . Trap Hack Attempts . | . . . . . Triggered . | . . . . . Disarmed . | . . . . . Reprogrammed . | . . . . . Reused . | . . . . . Traps Extracted . | . . . . . Installed . | . . . . . Triggered 1 | . . . 1 . Machines | -11 -10 -10 -9 -9 ---------- Run | Scr Mat Min Mat Sto Machines Disabled 2 | . . . 2 . Max in Single Turn 1 | . . . 1 . Machines Sabotaged . | . . . . . Garrisons Compromised . | . . . . . Overloaded Fab Kills . | . . . . . Hacking | -11 -10 -10 -9 -9 --------- Run | Scr Mat Min Mat Sto Machines Accessed 11 | . 5 . 5 1 Terminals 10 | . 5 . 4 1 Fabricators . | . . . . . Repair Stations . | . . . . . Recycling Units . | . . . . . Scanalyzers 1 | . . . 1 . Garrison Access . | . . . . . Total Hacks 31 | . 10 . 19 2 Successful 19 | . 8 . 9 2 Failed 12 | . 2 . 10 . Catastrophic . | . . . . . Database Lockouts . | . . . . . Manual 25 | . 9 . 14 2 Terminals 26 | . 10 . 14 2 Fabricators . | . . . . . Repair Stations . | . . . . . Recycling Units . | . . . . . Scanalyzers 5 | . . . 5 . Garrison Access . | . . . . . Terminal Hacks 1 | . 1 . . . Record 1 | . 1 . . . Fabricator Hacks . | . . . . . Repair Station Hacks . | . . . . . Recycling Unit Hacks . | . . . . . Scanalyzer 2 | . . . 2 . Insert Component 1 | . . . 1 . Analyze 1 | . . . 1 . Garrison Access Hacks . | . . . . . Unauthorized Hacks 16 | . 7 . 7 2 Terminals 16 | . 7 . 7 2 Assimilate 3 | . 1 . 2 . Botnet 10 | . 5 . 4 1 Operators 3 | . 1 . 1 1 Fabricators . | . . . . . Repair Stations . | . . . . . Recycling Units . | . . . . . Scanalyzers . | . . . . . Garrison Access . | . . . . . Data Cores Recovered . | . . . . . Used . | . . . . . Hacking Detections 7 | . 3 . 4 . Full Trace Events 2 | . . . 2 . Feedback Events . | . . . . . Feedback Blocked . | . . . . . Robot Schematics Acquired . | . . . . . Robots Built . | . . . . . Authchips . | . . . . . Time . | . . . . . Total Robot Build Rating . | . . . . . Part Schematics Acquired . | . . . . . Parts Built . | . . . . . Authchips . | . . . . . Time . | . . . . . Total Part Build Rating . | . . . . . Parts Repaired . | . . . . . Time . | . . . . . Parts Recycled . | . . . . . Recycled Matter . | . . . . . Retrieved Matter . | . . . . . Retrieved Components . | . . . . . Parts Scanalyzed 1 | . . . 1 . Part Schematics Acquired . | . . . . . Parts Damaged . | . . . . . Bothacking | -11 -10 -10 -9 -9 ------------ Run | Scr Mat Min Mat Sto Used RIF Installer . | . . . . . Robots Hacked . | . . . . . Non-combat . | . . . . . Combat . | . . . . . Robot Hacks Applied . | . . . . . Relay Couplers Released . | . . . . . Fabnet Peak Effective % . | . . . . . Robots Rewired . | . . . . . Allies Hacked . | . . . . . Hacks Repelled . | . . . . . Allies | -11 -10 -10 -9 -9 -------- Run | Scr Mat Min Mat Sto Total Allies 1 | . 1 . . . Largest Group 1 | . 1 1 1 . Highest-Rated Group 10 | . 10 10 10 . Highest-Rated Ally 10 | . 10 10 10 . Total Orders 5 | . . 4 1 . STAY 3 | . . 2 1 . FOLLOW 2 | . . 2 . . Ally Attacks . | . . . . . Total Damage . | . . . . . Kills . | . . . . . Allies Corrupted . | . . . . . Allies Melted . | . . . . . Intel | -11 -10 -10 -9 -9 ------- Run | Scr Mat Min Mat Sto Robot Analysis Total . | . . . . . Derelict Logs Recovered 3 | . . 3 . . Drone Launches . | . . . . . Drone Recoveries . | . . . . . Exploration | -11 -10 -10 -9 -9 ------------- Run | Scr Mat Min Mat Sto Turns Passed 4682 | 79 680 1616 2003 304 Spaces Moved 1911 | 45 248 642 835 141 Core 82 | 2 . 80 . . Treads 1573 | 43 248 373 768 141 Legs . | . . . . . Wheels 189 | . . 122 67 . Hover . | . . . . . Flight 67 | . . 67 . . Fastest Speed 50 | 50 160 95 95 160 Average Speed 179 | 155 160 224 155 160 Slowest Speed 600 | 160 160 600 240 160 Overloaded Moves . | . . . . . Propulsion Burnouts . | . . . . . Robots Hopped . | . . . . . Cave-ins Triggered . | . . . . . Exploration Rate (%) 49 | 5 51 97 66 27 Regions Visited 4 Branch Regions 2 Pre-discovered Areas 1 | . . 1 . . Known Exits Taken 1 | . . . 1 . Unknown Exits Taken 3 | 1 1 1 . . Scrap Searched 1 | . . 1 . . Spaces Dug . | . . . . . Terrain Destroyed 7 | . . . 7 . Melee . | . . . . . Projectile . | . . . . . AOE 7 | . . . 7 . Terrain Rammed . | . . . . . Walls Destroyed . | . . . . . Machines Disabled . | . . . . . Actions | -11 -10 -10 -9 -9 --------- Run | Scr Mat Min Mat Sto Total 2718 | 51 409 723 1348 187 Wait 441 | . 87 7 323 24 Move 1907 | 44 247 641 834 141 Hop . | . . . . . Pick Up 28 | 1 5 2 20 . Fast Attach 29 | 6 3 8 10 2 Attach 3 | . . . 3 . Detach . | . . . . . Swap 21 | . 3 3 14 1 Drop 39 | . 1 8 28 2 Fire 249 | . 62 54 116 17 Melee . | . . . . . Ram . | . . . . . Kick . | . . . . . Crush 1 | . 1 . . . Escape Stasis . | . . . . . Rewire . | . . . . . Trap . | . . . . . Miscellaneous . | . . . . . Route ------- -11/Scrapyard -10/Materials -10/Mines (discovered 2 exits: *Mat x2) -9/Materials (discovered 5 exits: Mat x2 / *Min / *Sto x2) -9/Storage History --------- Turn | Location | Event 18 | -11/Scrapyard | Discovered new exit (range 15) 80 | -11/Scrapyard | Entered Materials 309 | -10/Materials | Build established: Mutant 315 | -10/Materials | Discovered new exit (range 14) 760 | -10/Materials | Entered Mines 760 | -10/Mines | Accompanied by 1 ally 818 | -10/Mines | Met a Derelict bent on vengeance 919 | -10/Mines | Learned location of Zion (-7) 920 | -10/Mines | Discovered new exit (range 15) 944 | -10/Mines | Learned Materials emergency access door positions 1148 | -10/Mines | Learned 8 Materials zone layouts 1483 | -10/Mines | Build established: Scavenger-Mutant 1497 | -10/Mines | A weapon hastily lodged in a ceiling crevice suddenly fell to the ground 1565 | -10/Mines | Core integrity fell below 50% 1829 | -10/Mines | Found a damaged Exp. Sensor Array with a note attached 1840 | -10/Mines | Found Prototype Device 1852 | -10/Mines | Build established: Mutant 2098 | -10/Mines | Discovered new exit (range 3) 2348 | -10/Mines | Build established: Scavenger-Mutant 2376 | -10/Mines | Entered Materials 2376 | -9/Materials | Accompanied by 1 ally 2376 | -9/Materials | Evolved 2 slots: Utility x2 2377 | -9/Materials | Identified exit to Materials 2761 | -9/Materials | Discovered new exit (range 18) 2796 | -9/Materials | Destroyed 9 combat bots 2834 | -9/Materials | Discovered new exit (range 9) 2998 | -9/Materials | Build established: Mutant 3076 | -9/Materials | Identified exit to Storage 3303 | -9/Materials | Build established: Scavenger-Mutant 3511 | -9/Materials | Discovered exit to Storage (range 16) 3524 | -9/Materials | Core integrity fell below 50% 3780 | -9/Materials | Build established: Mutant 3853 | -9/Materials | Identified Exp. Sensor Array 4355 | -9/Materials | Identified exit to Mines 4379 | -9/Materials | Entered Storage 4575 | -9/Storage | Core integrity fell below 20% 4683 | -9/Storage | Destroyed by Heavy Explosive Trap Last Messages --------------- Trojan loaded successfully. Testing... Terminal linked with 0 systems. Awaiting botnet instructions. >>Trojan(Operators) Trojan loaded successfully. Testing... Operator tracking enabled and active. 04561_ Y-45 Defender destroyed. 04562_ Lgt. Armor Plating destroyed. 04566_ K-01 Serf collects debris. 04579_ Y-45 Defender destroyed. 04585_ Acquired Lgt. Armor Plating. 04588_ Dropped Imp. Ion Engine. 04589_ Acquired 28 matter. 04599_ Acquired 27 matter. 04683_ Triggered Proton Bomb Trap. 04683_ A bubble of electromagnetic force engulfs the area. 04683_ Heavy Explosive Trap short circuited. 04683_ An explosion rips through the floor. Map ----- +----------------------------------------------------+ | ???????????????????????????????????????????????? | | ???????????????????????????????????????????????? | | ???????????????????????????????????????????????? | | ???????????????????????????????????????????????? | | ???????????????????????????????????????????????? | | ???????????????????????????????????????????????? | | ???????????????????????????????????????????????? | | ???????????????????????????????????????????????? | | ???????????????????????????????????????????????? | | ???????????????????????????????????????????????? | | ???????????????????????????????????????????????? | | ???????????????????????????????????????????????? | | ???????????????????????????????????????????????? | | ???????????????????????????????????????????????? | | ???????????????????????????????????????????????? | | ???????????????????????????????????????????????? | | ???????????????????????????????????????????????? | | #### #???????????????????????????????????????? | | #?????????????####+##??????????????????? | | ### ?????????? #??????????????????? | | ??? ??????????????? ##?????????????????? | | ??? ??????????????? ??????????????????? | | #?? #####+##+####?## ???????????????????? | | #### ## ?#]] ???????????????????? | | ## ## """ """ """ #]] ######?????????????? | | ## ## """ """ """ #]]@ ; +?????????????? | | ## ## """ """ """ #### # ####?????????????? | | ## # #????# #????????????????? | | ## ## #????# #????????????????? | | ## #####+############### #????????????????? | | ## #???# # ??? + #????????????????? | | ## #???# # "???? ##### #????????????????? | | #### ##### # "????" #???# #????????????????? | | * %[ # "????" #???# #????????????????? | | * + "????" #???# ###T#"???????????? | | # """"?" ##### "???????????? | | ############## """ + "???????????? | | ?????????????# ############"???????????? | | ?????????????###########???????????????????????? | | ???????????????????????????????????????????????? | | ???????????????????????????????????????????????? | | ???????????????????????????????????????????????? | | | | | | | | | | | | | | | | | +----------------------------------------------------+ Best States ------------- Heat Dissipation 42 Energy Generation 14 Energy Capacity 265 Matter Stores 300 Matter Capacity 300 Sight Range 18 Terrain Scan Density 10 Armor Coverage 300 Evasion (%) 41 Recoil Reduction 2 Authchip Count 4 Item Schematics ----------------- None Robot Schematics ------------------ None Fabricated ------------ Nothing Alien Tech Used ----------------- None Achievements -------------- None Challenges ------------ None Game ------ Seed EfficiencyXenonRailgun Manual? 0 Play Time 00:18:43 Cumulative 321.0 hours Start 2022.06.11 @ 11:20:34 End 2022.06.11 @ 11:39:06 Sessions 1 Manual Loads 0 Difficulty Rogue Special Mode None Game No. 564 Rogue 409 Adventurer 148 Explorer 7 Win Type - Total 11 Types 9/0/1/1/0/0/0/0/0 Lore% 74 Gallery% 87 Achievement% 67 Wizard Run 0 Options --------- ASCII 0 Keyboard 0 Movement Numpad Keybinds 0 Fullscreen 1 Font 18/SmallcapsGlow Map View 76x50 Tactical HUD 1 Map Filters NONE Filters NONE Steam 1 RUN: 8d92b0cb-abce-49e9-b00f-b8ed2b25db62